bitfinex/quotes_ETHUSD_20260202
["timestamp","ask_amount","ask_price","bid_price","bid_amount"]
[1770067604912,12.29535927,2334.5,2334.0,0.001]
[1770067609345,11.72116276,2334.7,2334.0,0.001]
[1770067609546,13.09015686,2334.6,2334.0,0.001]
[1770067613751,13.09015686,2334.6,2334.2,0.001]
[1770067621437,13.05908979,2334.8,2334.2,0.001]
[1770067621838,7.72158745,2334.4,2334.0,0.001]
[1770067622074,7.72158745,2334.4,2333.5,0.001]
[1770067622075,12.16108979,2334.1,2333.5,0.001]
[1770067622562,0.898,2334.4,2333.5,12.97841765]
[1770067622776,1.30590898,2334.3,2333.5,15.04851816]
[1770067623662,1.30590898,2334.3,2333.6,12.97741765]
[1770067623961,0.898,2334.4,2333.6,12.97741765]
[1770067624834,0.898,2334.4,2333.8,12.97741765]
[1770067625531,0.0011,2334.6,2334.2,12.97741765]
[1770067625766,0.0011,2334.9,2334.1,7.72158745]
[1770067625767,0.0011,2334.9,2334.4,12.97741765]
[1770067625984,12.16218979,2334.9,2334.3,2.06990051]
[1770067626147,12.16108979,2334.7,2334.3,2.06990051]
[1770067626345,12.16108979,2334.7,2334.1,0.898]
[1770067627055,12.16108979,2334.8,2334.1,0.898]
[1770067630576,12.16108979,2334.7,2333.7,0.001]
[1770067631386,12.16108979,2334.7,2333.7,12.97841765]
[1770067632575,12.16108979,2334.7,2333.7,14.04967177]
[1770067632782,8.87613905,2334.8,2333.7,14.04967177]
[1770067632783,13.31674139,2334.9,2333.9,12.97741765]
[1770067633283,12.16108979,2334.7,2333.8,1.49476718]
[1770067633504,12.16108979,2334.7,2333.7,0.001]
[1770067633777,12.16108979,2334.7,2333.7,12.97841765]
[1770067634872,14.76108979,2334.7,2333.7,12.97841765]
[1770067635199,12.16108979,2334.6,2333.7,12.97841765]
[1770067635699,13.31564139,2334.6,2333.7,0.001]
[1770067635888,12.16108979,2334.4,2333.7,0.001]
[1770067636100,12.16108979,2334.3,2333.7,0.001]
[1770067636270,13.31564139,2334.3,2333.7,0.001]
[1770067638078,1.1545516,2334.4,2333.9,0.001]
[1770067638275,1.91563194,2334.4,2333.9,0.001]
[1770067638884,14.07672173,2334.4,2333.9,0.001]
[1770067643328,1.91563194,2334.4,2333.9,0.001]
[1770067643911,13.87939108,2334.4,2333.9,0.001]
[1770067644688,11.96375914,2334.3,2333.7,0.001]
[1770067644903,13.82122806,2334.3,2333.7,0.001]
[1770067646526,14.89223848,2334.3,2333.7,0.001]
[1770067646895,12.86175914,2334.2,2333.7,0.001]
[1770067647097,12.86175914,2334.2,2333.3,0.001]
[1770067647098,11.96375914,2333.9,2333.3,0.001]
[1770067647396,11.96375914,2333.9,2333.2,0.16965816]
[1770067647397,11.96375914,2333.7,2333.2,0.16965816]
[1770067648100,11.96375914,2333.5,2333.0,0.001]
[1770067648694,13.03513152,2333.5,2333.0,0.001]
[1770067648900,14.28072745,2333.4,2333.0,0.001]
[1770067652800,2.31696831,2333.4,2333.0,0.001]
[1770067653126,2.31696831,2333.4,2333.2,0.001]
[1770067655223,4.28504216,2333.7,2333.2,0.001]
[1770067655224,1.69864476,2333.8,2333.2,0.001]
[1770067655412,0.899,2333.7,2333.2,0.001]
[1770067657928,13.93402622,2333.7,2333.2,0.001]
[1770067658329,12.86275914,2333.7,2333.2,0.001]
[1770067658835,13.93403002,2333.7,2333.2,0.001]
[1770067659032,1.67039241,2333.6,2333.2,0.001]
[1770067659528,11.96375914,2333.4,2333.2,0.001]
[1770067659710,11.96375914,2333.4,2333.0,0.001]
[1770067660444,17.30546016,2333.6,2333.0,0.001]
[1770067660644,11.96375914,2333.5,2333.0,0.001]
[1770067660851,1.73054602,2333.4,2333.0,0.001]
[1770067663329,11.96375914,2333.2,2332.8,0.001]
[1770067663648,14.56375914,2333.2,2332.8,0.001]
[1770067664547,13.03525055,2333.2,2332.8,0.001]
[1770067664749,21.76634949,2333.1,2332.7,0.001]
[1770067664960,21.76634949,2333.1,2332.0,0.001]
[1770067664961,11.96375914,2332.8,2332.0,0.001]
[1770067665657,11.96375914,2332.8,2332.0,11.8617789]
[1770067665851,1.67039241,2332.7,2332.0,11.8617789]
[1770067666227,0.899,2332.6,2332.0,0.001]
[1770067666432,12.86275914,2332.6,2332.0,0.001]
[1770067667458,11.96375914,2332.4,2332.0,0.001]
[1770067668158,7.73178316,2332.5,2332.0,0.001]
[1770067668346,1.73054602,2332.4,2332.0,0.001]
[1770067668863,2.80241043,2332.4,2332.0,0.001]
[1770067670078,1.73054602,2332.4,2332.0,0.001]
[1770067670388,0.899,2332.6,2332.0,0.001]
[1770067670740,15.20700219,2332.7,2332.0,11.82855361]
[1770067670741,1.67039241,2332.7,2332.0,11.82855361]
[1770067670978,1.07170585,2332.8,2332.0,11.82855361]
[1770067672088,14.43554732,2332.9,2332.0,11.82855361]
[1770067672567,14.43554732,2332.9,2332.1,11.82755361]
[1770067672568,0.899,2332.9,2332.1,11.82755361]
[1770067673775,0.899,2332.9,2332.0,7.73278316]
[1770067673776,12.46488394,2332.8,2332.0,0.001]
[1770067673975,2.21673035,2332.7,2332.0,11.82855361]
[1770067675760,3.499,2332.9,2332.0,11.82855361]
[1770067677872,17.03551574,2332.9,2332.0,11.82855361]
[1770067678612,15.96388394,2332.9,2332.2,0.001]
[1770067678869,0.0011,2332.6,2332.2,0.001]
[1770067680494,0.0011,2332.8,2332.2,11.82855361]
[1770067680694,0.0011,2332.8,2332.3,13.01040897]
[1770067681990,3.499,2332.9,2332.3,13.01040897]
[1770067681991,0.899,2332.9,2332.3,13.01040897]
[1770067682191,0.899,2333.3,2332.3,13.01040897]
[1770067682401,13.36388394,2333.3,2332.3,13.01040897]
[1770067682604,1.81898533,2333.2,2332.4,1.3011409]
[1770067682774,1.81898533,2333.2,2332.4,13.12869451]
[1770067684290,12.46488394,2333.1,2332.4,1.3011409]
[1770067684469,12.46488394,2333.0,2332.2,0.001]
[1770067684876,12.46488394,2333.0,2332.2,11.82855361]
[1770067685200,14.28386927,2333.2,2332.2,11.82855361]
[1770067687299,15.35536409,2333.2,2332.2,11.82855361]
[1770067687515,2.51406989,2333.1,2332.3,13.01040897]
[1770067689986,16.88386927,2333.2,2332.3,13.01040897]
[1770067690193,15.06488394,2333.2,2332.3,13.01040897]
[1770067691905,15.06488394,2333.2,2332.4,0.001]
[1770067692116,12.46488394,2333.0,2332.4,0.001]
[1770067692294,12.46598394,2333.0,2332.4,0.001]
[1770067692488,20.1966671,2332.7,2332.4,0.001]
[1770067692800,14.48455065,2332.7,2332.4,0.001]
[1770067693210,3.7556516,2333.0,2332.4,0.001]
[1770067693211,1.1556516,2333.0,2332.4,0.001]
[1770067693409,1.1556516,2333.0,2332.4,11.82855361]
[1770067693410,0.0011,2333.0,2332.4,11.82855361]
[1770067693722,0.0011,2333.0,2332.5,11.84050446]
[1770067694121,0.0011,2333.0,2332.5,11.82755361]
[1770067694633,0.0011,2333.2,2332.6,13.02335982]
[1770067694939,0.761108,2333.4,2332.8,11.82755361]
[1770067695802,0.67577732,2333.4,2332.9,11.82755361]
[1770067696108,1.1556516,2333.7,2333.0,11.82755361]
[1770067696109,0.0011,2333.7,2333.0,11.82755361]
[1770067698018,0.0011,2333.7,2333.0,12.89910878]
[1770067698324,0.0011,2333.7,2333.1,13.98183789]
[1770067699520,0.0011,2333.7,2333.1,2.15428428]
[1770067706541,0.0011,2333.7,2333.3,0.001]
[1770067707038,0.0011,2333.5,2333.3,0.001]
[1770067710649,0.0011,2333.5,2333.0,0.001]
[1770067711337,1.03449832,2333.5,2333.0,0.001]
[1770067711545,0.0011,2333.5,2333.0,0.001]
[1770067711937,0.0011,2333.5,2333.0,12.11176025]
[1770067713756,0.0011,2333.5,2333.0,0.001]
[1770067718339,12.9043542,2333.5,2333.0,0.001]
[1770067718734,12.9043542,2333.5,2333.2,0.001]
[1770067718931,14.19489962,2333.5,2333.2,0.001]
[1770067719531,14.19489962,2333.5,2333.0,0.001]
[1770067722117,1.29164542,2333.5,2333.0,0.001]
[1770067722431,1.29164542,2333.5,2333.0,12.11176025]
[1770067722432,0.0011,2333.5,2333.0,12.11176025]
[1770067723665,0.0011,2333.5,2333.0,0.001]
[1770067725657,12.9043542,2333.5,2333.0,0.001]
[1770067725826,12.9032542,2333.4,2332.5,1.89912915]
[1770067726027,12.9032542,2333.3,2332.5,0.75504695]
[1770067726228,12.9032542,2333.1,2332.5,0.75504695]
[1770067727234,3.499,2333.4,2332.5,12.8658072]
[1770067727462,16.4022542,2333.4,2332.5,12.8658072]
[1770067727632,12.9032542,2333.3,2332.5,12.8658072]
[1770067728034,12.9032542,2333.3,2332.5,13.93760359]
[1770067728362,3.499,2333.4,2332.6,14.70657452]
[1770067728561,3.499,2333.4,2332.7,12.11076025]
[1770067728562,2.6,2333.4,2332.7,12.11076025]
[1770067729569,2.6,2333.4,2332.7,13.00976025]
[1770067730757,0.0011,2333.5,2332.9,12.89144558]
[1770067731171,0.0011,2333.3,2332.9,12.89144558]
[1770067731371,0.0011,2333.3,2333.0,14.95381723]
[1770067734368,0.0011,2333.3,2333.0,2.06237165]
[1770067734573,0.0011,2333.3,2332.7,0.9]
[1770067735193,0.0011,2333.3,2332.7,13.79144558]
[1770067737384,0.0011,2333.3,2332.7,14.86315432]
[1770067737588,0.0011,2333.3,2332.9,12.89144558]
[1770067739386,0.0011,2333.3,2332.8,7.73227089]
[1770067739595,0.0011,2333.3,2332.9,2.15237165]
[1770067740883,0.0011,2333.5,2333.1,12.89144558]
[1770067741058,0.0011,2333.5,2333.1,13.79044558]
[1770067744884,0.0011,2333.5,2333.1,13.79144558]
[1770067745190,0.0011,2333.3,2333.1,13.79144558]
[1770067745382,0.0011,2333.3,2333.2,2.15237165]
[1770067754089,0.0011,2333.3,2333.1,0.9]
[1770067758502,0.0011,2333.7,2333.3,12.89144558]
[1770067758817,0.0011,2333.7,2333.4,0.899]
[1770067761632,1.15552546,2334.1,2333.4,21.47189194]
[1770067761803,12.26940267,2334.2,2333.5,11.76923904]
[1770067762131,12.26940267,2334.2,2333.6,2.14718919]
[1770067762311,12.26940267,2334.2,2333.7,0.899]
[1770067764225,0.0011,2334.3,2333.7,0.899]
[1770067764226,0.0011,2334.3,2333.7,13.73949299]
[1770067764927,0.0011,2334.3,2333.7,13.75244384]
[1770067765625,0.0011,2334.6,2334.1,11.76923904]
[1770067765826,0.0011,2334.6,2334.2,14.61968512]
[1770067766125,12.27050267,2334.6,2334.2,2.85044608]
[1770067766328,12.27050267,2334.6,2334.2,0.899]
[1770067767604,0.0011,2334.6,2334.2,0.899]
[1770067767808,0.0011,2334.6,2334.2,21.4715274]
[1770067768124,0.0011,2334.6,2334.3,11.76923904]
[1770067770128,0.27048749,2334.7,2334.3,12.84021439]
[1770067770318,12.53989016,2334.7,2334.4,2.57555904]
[1770067770623,12.53989016,2334.7,2334.2,0.899]
[1770067770827,0.27048749,2334.7,2334.2,1.97002765]
[1770067771198,0.0011,2334.4,2334.2,1.97002765]
[1770067771613,0.0011,2334.4,2334.2,0.899]
[1770067776436,12.27050267,2334.4,2334.2,0.899]
[1770067776635,12.27050267,2334.4,2333.8,1.07118077]
[1770067776800,12.27050267,2334.4,2334.0,0.898]
[1770067779234,0.0011,2334.6,2334.1,11.76923904]
[1770067780126,0.0011,2334.6,2334.1,11.78218989]
[1770067781641,0.27048749,2334.7,2334.3,11.76923904]
[1770067781939,0.27048749,2334.7,2334.4,0.898]
[1770067782124,0.27048749,2334.7,2334.5,1.2667239]
[1770067784142,0.2328937,2334.7,2334.5,1.2667239]
[1770067784439,0.0011,2334.9,2334.5,2.33760895]
[1770067784750,0.0011,2334.9,2334.5,14.10684799]
[1770067784955,0.0011,2335.1,2334.7,11.76923904]
[1770067785159,0.0011,2335.1,2334.8,2.84708864]
[1770067786053,0.0011,2335.4,2334.9,11.76923904]
[1770067786942,0.0011,2335.4,2334.9,0.01295085]
[1770067787149,0.0011,2335.4,2334.8,11.6524385]
[1770067787332,0.0011,2335.4,2335.0,19.4908864]
[1770067787535,0.0011,2335.6,2335.1,1.94908864]
[1770067787742,0.0011,2335.6,2335.2,0.898]
[1770067788131,0.0011,2335.6,2335.2,9.69020218]
[1770067789036,0.0011,2336.1,2335.4,19.50383725]
[1770067789346,0.0011,2336.1,2335.6,7.72164736]
[1770067789545,0.0011,2336.1,2335.7,2.84838373]
[1770067790141,0.0011,2336.4,2336.0,7.72164736]
[1770067790431,0.0011,2336.4,2336.1,0.898]
[1770067790432,12.8679793,2336.4,2336.1,0.898]
[1770067790844,12.8679793,2336.4,2335.3,4.2821018]
[1770067790845,12.8679793,2336.4,2335.4,1.07044729]
[1770067791157,12.8679793,2336.4,2335.5,0.898]
[1770067791362,14.92584197,2336.3,2335.5,0.898]
[1770067791537,14.92584197,2336.3,2335.6,7.72164736]
[1770067791731,0.0011,2336.4,2335.7,1.0703361]
[1770067791933,0.0011,2336.4,2335.6,8.79200802]
[1770067792858,12.8679793,2336.4,2335.6,7.72164736]
[1770067793060,12.8679793,2336.4,2335.5,13.71953051]
[1770067793061,12.8679793,2336.4,2335.2,8.79218052]
[1770067793254,12.8679793,2336.4,2335.3,0.898]
[1770067793561,12.8668793,2336.2,2335.3,1.96852551]
[1770067794154,12.8668793,2336.2,2335.1,1.94908864]
[1770067794366,12.8668793,2336.0,2334.9,1.18520302]
[1770067794672,12.8668793,2336.0,2335.0,0.898]
[1770067796380,12.8668793,2336.0,2335.2,0.001]
[1770067797255,12.8668793,2336.0,2335.2,7.72264736]
[1770067798460,12.8668793,2336.0,2335.2,8.79319391]
[1770067798670,14.15367723,2336.0,2335.2,11.36706641]
[1770067798974,14.15367723,2336.0,2335.2,10.29651986]
[1770067799374,14.15367723,2336.0,2335.2,2.5748725]
[1770067800676,14.15367723,2336.0,2335.2,0.001]
[1770067801748,12.8668793,2335.8,2335.2,0.001]
[1770067802755,13.93718461,2335.8,2335.0,0.001]
[1770067802961,12.8668793,2335.8,2335.0,0.001]
[1770067803150,12.8668793,2335.8,2335.0,7.72264736]
[1770067803349,12.8668793,2335.8,2335.1,2.262767]
[1770067804377,12.8668793,2336.0,2335.2,7.72164736]
[1770067804674,12.8668793,2336.0,2335.3,1.07052627]
[1770067805953,0.0011,2336.1,2335.4,7.72164736]
[1770067806676,12.8679793,2336.1,2335.1,2.262767]
[1770067806972,12.8668793,2335.9,2335.1,1.07060133]
[1770067807145,12.8668793,2335.9,2335.0,0.899]
[1770067808247,12.8668793,2335.9,2335.1,1.07061059]
[1770067808449,12.8668793,2335.9,2335.0,1.96963079]
[1770067808743,12.8668793,2335.9,2335.0,0.899]
[1770067808949,2.35700917,2336.0,2335.0,0.899]
[1770067808950,12.8668793,2335.7,2335.0,0.899]
[1770067809573,12.8668793,2335.7,2335.4,0.001]
[1770067811288,13.93723827,2335.7,2334.9,1.18520302]
[1770067811490,13.9372432,2335.7,2334.9,1.18520302]
[1770067811693,13.93722355,2335.7,2334.9,1.18520302]
[1770067811887,12.8668793,2335.5,2334.9,1.18520302]
[1770067816184,12.8668793,2335.7,2334.9,1.18520302]
[1770067819600,13.93722719,2335.7,2334.9,1.18520302]
[1770067821003,12.8668793,2335.7,2334.9,1.18520302]
[1770067821317,12.8668793,2335.7,2335.1,0.001]
[1770067821500,12.92723613,2335.9,2335.1,0.001]
[1770067821679,13.76965821,2335.9,2335.1,0.001]
[1770067822495,13.77075821,2335.9,2335.1,0.001]
[1770067823290,0.84352208,2335.9,2335.1,12.33245628]
[1770067823496,0.0011,2335.9,2335.1,12.33245628]
[1770067824015,0.0011,2336.1,2335.4,12.33145628]
[1770067827132,0.0011,2336.1,2335.3,1.07049302]
[1770067827289,0.0011,2336.1,2335.3,13.4019493]
[1770067827496,0.0011,2336.1,2335.4,1.85822338]
[1770067830023,12.92833613,2336.1,2335.4,1.85822338]
[1770067830202,12.92833613,2336.1,2335.2,1.9685579]
[1770067830395,12.92833613,2336.1,2335.2,14.30001418]
[1770067831618,12.92833613,2336.1,2335.2,13.22945628]
[1770067832339,12.92833613,2336.1,2335.2,14.30002436]
[1770067832630,0.0011,2336.1,2335.4,7.71410848]
[1770067832828,0.0011,2336.1,2335.5,2.00455648]
[1770067834901,0.0011,2336.1,2335.6,20.04556476]
[1770067835229,0.0011,2336.1,2335.5,3.08793064]
[1770067835230,0.0011,2336.4,2336.0,7.71410848]
[1770067835526,0.0011,2336.4,2335.8,0.898]
[1770067837623,0.0011,2336.4,2335.8,14.29973279]
[1770067837825,0.0011,2336.4,2335.9,1.85940424]
[1770067838412,0.0011,2336.4,2335.9,12.33145628]
[1770067839222,0.0011,2336.4,2335.9,13.40169783]
[1770067839519,0.0011,2336.4,2335.9,13.40169683]
[1770067840106,0.0011,2336.4,2335.8,0.898]
[1770067840311,0.0011,2336.4,2335.8,1.96829186]
[1770067840911,0.0011,2336.4,2335.8,14.29974814]
[1770067841239,0.0011,2336.4,2335.9,14.19085951]
[1770067842426,0.0011,2336.4,2335.9,15.26107206]
[1770067843319,0.0011,2336.4,2335.9,2.92961578]
[1770067845445,0.40486682,2336.6,2336.0,12.33145628]
[1770067846937,0.40486682,2336.6,2336.0,12.33245628]
[1770067847147,0.20436323,2336.6,2336.1,1.52620721]
[1770067847449,0.0011,2336.7,2336.1,1.52620721]
[1770067847450,0.0011,2336.7,2336.3,12.33145628]
[1770067847624,0.0011,2336.9,2336.4,0.898]
[1770067847834,0.0011,2337.1,2336.4,0.898]
[1770067847835,0.0011,2337.1,2336.5,12.34440713]
[1770067848021,0.0011,2337.3,2336.5,12.34440713]
[1770067848220,0.0011,2337.3,2336.6,13.65569699]
[1770067848857,0.0011,2337.3,2336.6,1.32424071]
[1770067849321,0.0011,2337.3,2336.6,2.3941333]
[1770067849517,0.0011,2337.3,2336.6,1.32424071]
[1770067849518,12.0061944,2337.3,2336.6,1.32424071]
[1770067849823,12.0061944,2337.3,2336.4,0.898]
[1770067850223,12.0061944,2337.3,2336.5,0.898]
[1770067852258,12.0061944,2337.3,2336.6,0.01295085]
[1770067852418,0.0011,2337.3,2336.6,11.94368573]
[1770067853545,0.0011,2337.3,2336.7,1.06988488]
[1770067853819,0.0011,2337.3,2336.8,1.72932877]
[1770067854426,1.06932118,2338.0,2337.2,0.01295085]
[1770067854427,12.9050414,2338.0,2337.2,0.01295085]
[1770067854627,12.9050414,2338.0,2337.3,0.01295085]
[1770067854826,6.16665816,2338.6,2337.3,0.01295085]
[1770067854827,12.9050414,2338.4,2337.3,0.01295085]
[1770067855026,12.9050414,2338.4,2337.3,11.94368573]
[1770067855238,14.33729686,2338.4,2337.4,1.28406857]
[1770067855439,14.33729686,2338.4,2337.2,1.9795904]
[1770067855639,15.40641146,2338.4,2337.2,1.9795904]
[1770067855863,15.40641146,2338.4,2337.2,0.897]
[1770067856166,12.9050414,2338.3,2337.0,0.897]
[1770067856382,12.9050414,2338.3,2337.0,1.96674442]
[1770067856542,3.65045643,2338.4,2337.0,2.88890094]
[1770067856543,12.9050414,2338.1,2337.0,2.88890094]
[1770067856948,12.9050414,2338.1,2337.0,0.897]
[1770067857142,12.9050414,2338.1,2337.0,1.96674419]
[1770067857349,12.9050414,2338.1,2337.0,0.897]
[1770067857537,12.9050414,2337.9,2337.0,0.897]
[1770067859473,12.9050414,2337.7,2337.0,0.897]
[1770067859766,14.30248369,2337.6,2337.0,0.897]
[1770067861164,1.39744229,2337.6,2337.0,0.897]
[1770067861369,0.0011,2337.7,2337.0,0.897]
[1770067862095,0.0011,2337.7,2337.1,0.01295085]
[1770067862502,0.0011,2337.7,2337.0,1.9667434]
[1770067863109,0.0011,2337.7,2337.1,11.94368573]
[1770067863315,13.25350582,2338.6,2337.5,11.94368573]
[1770067863610,12.9050414,2339.2,2338.2,0.01295085]
[1770067863809,12.9050414,2339.2,2338.3,1.0691528]
[1770067864370,12.9050414,2339.5,2338.3,1.0691528]
[1770067864566,12.9050414,2339.5,2338.2,0.01295085]
[1770067864770,1.96552052,2339.7,2337.8,13.01302907]
[1770067864771,12.9050414,2339.3,2337.8,13.01302907]
[1770067864981,12.9050414,2339.3,2337.9,0.897]
[1770067865589,12.9050414,2339.3,2337.7,1.06942691]
[1770067865786,12.9050414,2339.1,2337.8,1.08230827]
[1770067865988,12.9050414,2339.1,2338.1,0.01295085]
[1770067866192,14.19554554,2339.1,2337.8,13.01304315]
[1770067866430,14.19554554,2339.1,2338.1,0.01295085]
[1770067866768,14.19554554,2339.1,2337.8,13.01304315]
[1770067866979,14.19554554,2339.1,2337.7,1.96638605]
[1770067867208,14.19554554,2339.1,2337.7,1.96642453]
[1770067867410,1.06870378,2339.3,2337.8,1.81324215]
[1770067867411,12.9050414,2338.9,2337.8,1.81324215]
[1770067867712,1.41955455,2339.0,2338.1,0.01295085]
[1770067867911,15.39344693,2339.0,2337.8,0.75681467]
[1770067868093,15.39344693,2339.0,2337.8,1.65381467]
[1770067868273,14.32459595,2339.0,2337.9,1.06933389]
[1770067868473,1.4324596,2338.9,2338.0,0.27231486]
[1770067869106,14.337501,2338.9,2338.0,0.27231486]
[1770067870631,15.40638561,2338.9,2338.0,0.27231486]
[1770067870791,15.40638561,2338.9,2337.8,1.65381467]
[1770067871192,15.40638561,2338.9,2337.8,1.64086382]
[1770067872104,15.40638561,2338.9,2337.8,0.74386382]
[1770067874233,15.40638561,2338.9,2338.1,0.001]
[1770067874728,15.40748561,2338.9,2338.1,0.001]
[1770067875029,12.9050414,2338.7,2338.1,0.001]
[1770067875611,12.9050414,2338.7,2337.9,0.001]
[1770067876394,12.9050414,2338.5,2337.9,0.001]
[1770067877397,1.96828563,2338.8,2338.0,0.01295085]
[1770067877601,0.0011,2338.9,2338.0,0.01295085]
[1770067877816,0.0011,2338.9,2338.0,1.20741942]
[1770067878033,0.0011,2338.9,2338.0,13.1381543]
[1770067878739,0.0011,2338.9,2338.1,12.99997913]
[1770067879219,12.9050414,2339.7,2338.4,11.93073488]
[1770067879424,1.39735499,2339.6,2338.6,11.94368573]
[1770067879924,13.52647605,2340.0,2338.6,11.94368573]
[1770067880725,13.52647605,2340.0,2338.6,13.01265719]
[1770067881092,13.52647605,2340.0,2338.5,1.19436857]
[1770067881491,11.56107508,2339.8,2338.0,12.11509409]
[1770067881695,12.71016145,2339.8,2338.0,13.01209409]
[1770067881896,12.71016145,2339.8,2338.1,1.06922404]
[1770067882503,11.56107508,2339.6,2337.9,0.001]
[1770067882708,11.56107508,2339.2,2337.9,0.001]
[1770067882905,11.56107508,2339.0,2337.9,0.001]
[1770067884997,1.26297708,2339.1,2338.1,0.01295085]
[1770067885238,1.26297708,2339.1,2337.9,10.92162552]
[1770067886344,13.526798,2339.3,2338.1,0.01295085]
[1770067886754,2.6,2339.5,2338.1,10.93357637]
[1770067886955,2.6,2339.5,2338.2,12.00277489]
[1770067886956,11.56107508,2339.5,2338.2,12.00277489]
[1770067887826,11.56107508,2339.5,2338.2,12.89977489]
[1770067888029,11.56107508,2339.5,2338.5,0.01295085]
[1770067888222,13.25949735,2339.5,2338.2,12.89977489]
[1770067888546,13.25949735,2339.5,2338.2,12.88682404]
[1770067889045,14.32811444,2339.5,2338.2,11.81762552]
[1770067889247,13.25949735,2339.5,2338.2,12.88681698]
[1770067890327,13.25949735,2339.5,2338.3,0.01295085]
[1770067890540,14.32810765,2339.5,2338.3,11.55927001]
[1770067890738,14.32810765,2339.5,2338.3,0.62569364]
[1770067890940,14.32810765,2339.5,2338.2,1.96619387]
[1770067893024,14.32810765,2339.5,2338.2,12.88681939]
[1770067893222,15.47719402,2339.5,2338.2,12.88681939]
[1770067893424,11.56107508,2339.4,2338.2,12.88681939]
[1770067895450,11.56107508,2339.4,2338.2,12.89977024]
[1770067895645,11.56107508,2339.4,2338.3,1.83147292]
[1770067896457,11.56107508,2339.4,2338.3,12.75209844]
[1770067897448,11.56107508,2339.4,2338.3,13.8212214]
[1770067902450,11.56107508,2339.4,2338.5,0.001]
[1770067905862,0.0011,2339.6,2338.7,10.92062552]
[1770067906066,0.0011,2339.6,2338.6,0.01295085]
[1770067906067,1.15300694,2339.9,2339.1,10.92062552]
[1770067906364,13.10310835,2340.1,2339.1,10.92062552]
[1770067906365,11.56107508,2340.3,2339.3,10.92062552]
[1770067906866,11.90545,2340.5,2339.3,10.92062552]
[1770067907065,11.56107508,2340.5,2339.3,10.92062552]
[1770067907268,12.93929659,2340.5,2339.4,1.20023178]
[1770067907968,14.00745969,2340.5,2339.4,1.20023178]
[1770067908149,14.00745969,2340.5,2339.2,1.06874145]
[1770067908642,12.93929659,2340.5,2339.3,10.92062552]
[1770067908842,11.56107508,2340.5,2339.3,10.92062552]
[1770067909642,1.96499807,2340.9,2339.3,10.92062552]
[1770067909643,9.73695746,2340.7,2339.3,10.92062552]
[1770067910145,9.73695746,2340.7,2339.4,11.00955528]
[1770067910351,9.73695746,2340.7,2339.6,10.11355528]
[1770067911237,1.54203327,2341.3,2339.6,10.11355528]
[1770067911238,9.72695186,2341.0,2339.6,10.11355528]
[1770067911568,9.72695186,2341.0,2339.8,10.11355528]
[1770067911569,10.80643447,2341.0,2339.8,10.11355528]
[1770067911776,9.72695186,2341.0,2339.8,10.11355528]
[1770067912336,9.72695186,2341.0,2339.9,1.06842172]
[1770067912560,9.72695186,2341.0,2339.9,11.181977]
[1770067912751,9.72695186,2341.0,2339.8,1.06843117]
[1770067913051,9.72695186,2341.0,2339.8,11.18198645]
[1770067913258,9.72695186,2341.0,2339.9,1.65754624]
[1770067914677,10.79488181,2341.0,2339.9,1.65754624]
[1770067914845,10.79488181,2341.0,2339.7,2.01551105]
[1770067915175,10.79488181,2341.0,2339.7,1.11951105]
[1770067916076,10.79488181,2341.0,2339.3,10.11355528]
[1770067916278,9.72695186,2340.8,2339.0,1.0688037]
[1770067916588,9.72695186,2340.8,2339.0,1.9648037]
[1770067916589,9.72695186,2340.4,2339.0,1.9648037]
[1770067916775,9.72695186,2340.4,2339.5,0.001]
[1770067916980,9.72695186,2340.6,2339.5,10.11455528]
[1770067917477,9.72695186,2340.6,2339.6,10.12650613]
[1770067917672,0.0011,2340.8,2339.6,10.12650613]
[1770067918195,9.72805186,2340.8,2339.6,10.12650613]
[1770067918675,9.72805186,2340.8,2339.8,10.11355528]
[1770067918876,9.72805186,2340.8,2339.9,1.11820683]
[1770067920484,0.0011,2340.8,2339.9,11.23176211]
[1770067920684,0.0011,2340.8,2340.1,10.11355528]
[1770067921098,9.72695186,2341.5,2340.3,0.01295085]
[1770067921299,9.72695186,2341.5,2340.3,10.12650613]
[1770067921599,9.72695186,2341.5,2340.4,11.12620589]
[1770067921961,9.72695186,2341.5,2340.4,1.01265061]
[1770067922291,9.72695186,2341.5,2340.0,10.11355528]
[1770067922662,9.72695186,2341.5,2340.2,10.11355528]
[1770067923917,9.72695186,2341.5,2339.9,1.11820683]
[1770067923918,10.79466944,2341.5,2339.9,1.11820683]
[1770067924760,10.79466944,2341.5,2339.5,0.001]
[1770067924761,9.72695186,2341.1,2339.5,0.001]
[1770067924989,9.72695186,2340.9,2339.5,0.001]
[1770067927091,9.72695186,2340.7,2339.5,0.001]
[1770067929066,1.06810219,2340.6,2339.5,0.001]
[1770067929261,9.72695186,2340.5,2339.5,0.001]
[1770067929500,9.72695186,2340.3,2339.5,0.001]
[1770067929980,9.72695186,2340.3,2339.7,0.001]
[1770067931185,1.0795054,2340.4,2339.7,0.001]
[1770067931409,10.79508728,2340.6,2339.7,0.001]
[1770067932819,10.79508728,2340.6,2339.5,0.001]
[1770067932999,9.72695186,2340.4,2339.5,0.001]
[1770067933198,9.72695186,2340.2,2339.5,0.001]
[1770067934426,9.72695186,2340.2,2338.8,1.09335764]
[1770067934792,9.72695186,2340.2,2338.6,1.96498274]
[1770067935121,9.72695186,2340.2,2338.6,11.00955528]
[1770067935318,9.72695186,2340.0,2338.6,11.00955528]
[1770067935519,9.72695186,2340.0,2338.6,0.896]
[1770067936022,9.72695186,2340.0,2338.6,12.07856622]
[1770067936224,1.06833041,2340.1,2338.7,11.86181798]
[1770067936225,9.72695186,2339.8,2338.7,11.86181798]
[1770067937285,9.72695186,2339.8,2338.8,10.11355528]
[1770067940518,9.72695186,2339.8,2338.8,11.18247833]
[1770067940722,9.72695186,2339.8,2338.8,11.18247723]
[1770067940920,1.07952823,2339.9,2338.8,11.18247723]
[1770067941124,12.12554307,2340.2,2339.0,8.36775147]
[1770067941332,8.45722817,2340.1,2339.0,8.36775147]
[1770067942116,9.52556255,2340.1,2339.0,8.36775147]
[1770067942843,9.52556255,2340.1,2338.6,0.90895085]
[1770067942844,9.52557427,2340.1,2338.6,0.896]
[1770067942993,8.45722817,2339.9,2338.6,0.896]
[1770067943492,8.45722817,2339.9,2339.2,0.001]
[1770067943900,8.45722817,2339.7,2339.2,0.001]
[1770067944197,1.06846739,2339.8,2339.2,0.001]
[1770067944198,8.45722817,2339.6,2339.2,0.001]